fUST/lending_fUST_20250902
["ID","MTS","AMOUNT","RATE_DAILY","PERIOD"]
[383017944,1756810234832,-480.0,0.00013698,2]
[383017945,1756810234841,-480.0,0.00013698,2]
[383017946,1756810234851,-480.0,0.00013698,2]
[383017947,1756810234861,-480.0,0.00013698,2]
[383017948,1756810234870,-775.01,0.00013698,2]
[383017949,1756810234880,-480.0,0.00013698,2]
[383017950,1756810234889,-480.0,0.00013698,2]
[383017951,1756810234899,-480.0,0.00013698,2]
[383017952,1756810234908,-480.0,0.00013698,2]
[383017953,1756810234918,-480.0,0.00013698,2]
[383017954,1756810234928,-480.0,0.00013698,2]
[383017955,1756810234938,-480.0,0.00013698,2]
[383017956,1756810234947,-480.0,0.00013698,2]
[383017957,1756810234956,-480.0,0.00013698,2]
[383017958,1756810234965,-481.8743327,0.00013698,2]
[383017959,1756810234975,-480.0,0.00013698,2]
[383017960,1756810234984,-480.0,0.00013698,2]
[383017961,1756810234993,-480.0,0.00013698,2]
[383017962,1756810235003,-480.0,0.00013698,2]
[383017963,1756810235013,-551.05,0.00013698,2]
[383017964,1756810235023,-1605.01,0.00013698,2]
[383017965,1756810235032,-480.0,0.00013698,2]
[383017966,1756810235042,-480.0,0.00013698,2]
[383017967,1756810235052,-518.11,0.00013698,2]
[383017968,1756810235063,-365.43669614,0.00013698,2]
[383017969,1756810235075,-480.0,0.00013698,2]
[383017970,1756810235085,-480.0,0.00013698,2]
[383017971,1756810235096,-480.0,0.00013698,2]
[383017972,1756810235108,-480.0,0.00013698,2]
[383017973,1756810235118,-480.0,0.00013698,2]
[383017974,1756810235129,-480.0,0.00013698,2]
[383017975,1756810235139,-480.0,0.00013698,2]
[383017976,1756810235150,-487.78882994,0.00013698,2]
[383017977,1756810235161,-480.0,0.00013698,2]
[383017978,1756810235171,-480.0,0.00013698,2]
[383017979,1756810235331,-480.0,0.00013698,2]
[383017980,1756810235347,-482.46412833,0.00013698,2]
[383017981,1756810235357,-480.0,0.00013698,2]
[383017982,1756810235366,-480.0,0.00013698,2]
[383017983,1756810235377,-480.0,0.00013698,2]
[383017984,1756810235387,-480.0,0.00013698,2]
[383017985,1756810235397,-464.15629694,0.00013698,2]
[383017986,1756810235406,-480.0,0.00013698,2]
[383017987,1756810235420,-480.0,0.00013698,2]
[383017988,1756810235429,-480.0,0.00013698,2]
[383017989,1756810235439,-500.0,0.00013698,2]
[383017990,1756810235448,-965.593969,0.00013699,2]
[383017991,1756810235458,-2799.95695693,0.00013804,2]
[383017992,1756810235468,-151.0,0.000139,2]
[383017993,1756810235478,-300.0,0.00013971,2]
[383017994,1756810235490,-300.0,0.00013971,2]
[383017995,1756810235501,-300.0,0.00013971,2]
[383017996,1756810235510,-300.0,0.00013971,2]
[383017997,1756810235520,-300.0,0.00013971,2]
[383017998,1756810235531,-300.0,0.00013971,2]
[383017999,1756810235540,-300.0,0.00013971,2]
[383018000,1756810235551,-300.0,0.00013971,2]
[383018001,1756810235561,-300.0,0.00013971,2]
[383018002,1756810235571,-300.0,0.00013971,2]
[383018003,1756810235582,-300.0,0.00013971,2]
[383018004,1756810235592,-300.0,0.00013971,2]
[383018005,1756810235602,-300.0,0.00013971,2]
[383018006,1756810235611,-300.0,0.00013971,2]
[383018007,1756810235620,-207.38457345,0.00013971,2]
[383018009,1756810238076,-480.0,0.00013698,2]
[383018010,1756810238086,-92.61542655,0.00013971,2]
[383018011,1756810238095,-600.0,0.00013971,2]
[383018012,1756810238105,-480.0,0.00013972,2]
[383018013,1756810238114,-407.74120864,0.00013972,2]
[383018014,1756810238278,-72.25879136,0.00013972,2]
[383018016,1756810238287,-480.0,0.00013972,2]
[383018018,1756810238297,-480.0,0.00013972,2]
[383018019,1756810238306,-169.81235326,0.00013972,2]
[383018020,1756810238318,-310.18764674,0.00013972,2]
[383018021,1756810238328,-480.0,0.00013972,2]
[383018024,1756810238337,-270.54199,0.00013972,2]
[383018026,1756810238346,-480.0,0.00013972,2]
[383018028,1756810238356,-619.69,0.00013972,2]
[383018030,1756810238365,-480.0,0.00013972,2]
[383018032,1756810238375,-480.0,0.00013972,2]
[383018034,1756810238384,-513.08,0.00013972,2]
[383018036,1756810238394,-480.0,0.00013972,2]
[383018037,1756810238403,-480.0,0.00013972,2]
[383018039,1756810238418,-480.0,0.00013972,2]
[383018041,1756810238427,-480.0,0.00013972,2]
[383018043,1756810238437,-480.0,0.00013972,2]
[383018045,1756810238446,-480.0,0.00013972,2]
[383018047,1756810238457,-480.0,0.00013972,2]
[383018049,1756810238466,-258.35481098,0.00013972,2]
[383018051,1756810238478,-221.64518902,0.00013972,2]
[383018053,1756810238490,-480.0,0.00013972,2]
[383018055,1756810238500,-480.0,0.00013972,2]
[383018057,1756810238510,-404.29,0.00013972,2]
[383018059,1756810238520,-403.64,0.00013972,2]
[383018061,1756810238529,-151.0,0.00013972,2]
[383018063,1756810238539,-480.0,0.00013972,2]
[383018065,1756810238549,-459.71279564,0.00013972,2]
[383018067,1756810238558,-480.0,0.00013972,2]
[383018069,1756810238568,-480.0,0.00013972,2]
[383018072,1756810238578,-431.29400384,0.00013972,2]
[383018074,1756810238590,-48.70599616,0.00013972,2]
[383018076,1756810238600,-480.0,0.00013972,2]
[383018078,1756810238610,-480.0,0.00013972,2]
[383018080,1756810238619,-480.0,0.00013972,2]
[383018082,1756810238628,-480.0,0.00013972,2]
[383018084,1756810238638,-480.0,0.00013972,2]
[383018086,1756810238647,-480.0,0.00013972,2]
[383018088,1756810238657,-483.43128763,0.00013972,2]
[383018090,1756810238666,-480.0,0.00013972,2]
[383018092,1756810238676,-480.0,0.00013972,2]
[383018094,1756810238685,-480.0,0.00013972,2]
[383018096,1756810238694,-480.0,0.00013972,2]
[383018098,1756810238704,-480.0,0.00013972,2]
[383018100,1756810238713,-480.0,0.00013972,2]
[383018102,1756810238723,-702.63,0.00013972,2]
[383018104,1756810238733,-151.0,0.00013972,2]
[383018106,1756810238742,-151.0,0.00013972,2]
[383018108,1756810238752,-480.0,0.00013972,2]
[383018109,1756810238761,-502.22,0.00013972,2]
[383018110,1756810238771,-480.0,0.00013972,2]
[383018111,1756810238781,-323.63237162,0.00013972,2]
[383018112,1756810238793,-156.36762838,0.00013972,2]
[383018113,1756810238802,-286.82,0.00013972,2]
[383018114,1756810238814,-480.0,0.00013972,2]
[383018115,1756810238824,-480.0,0.00013972,2]
[383018116,1756810238833,-480.0,0.00013972,2]
[383018117,1756810238842,-543.35,0.00013972,2]
[383018118,1756810238851,-1110.96,0.00013972,2]
[383018119,1756810238861,-480.0,0.00013972,2]
[383018120,1756810238870,-154.442497,0.00013972,2]
[383018121,1756810238879,-159.72798913,0.00013972,2]
[383018297,1756810241581,-1386.59201087,0.00013972,2]
[383018299,1756810241591,-480.0,0.00013972,2]
[383018301,1756810241601,-480.0,0.00013972,2]
[383018303,1756810241611,-480.0,0.00013972,2]
[383018305,1756810241620,-480.0,0.00013972,2]
[383018307,1756810241630,-533.75,0.00013972,2]
[383018309,1756810241639,-480.0,0.00013972,2]
[383018311,1756810241649,-480.0,0.00013972,2]
[383018313,1756810241660,-480.0,0.00013972,2]
[383018315,1756810241670,-480.0,0.00013972,2]
[383018317,1756810241680,-480.0,0.00013972,2]
[383018319,1756810241690,-579.92,0.00013972,2]
[383018321,1756810241699,-558.74,0.00013972,2]
[383018323,1756810241708,-480.0,0.00013972,2]
[383018325,1756810241717,-480.0,0.00013972,2]
[383018327,1756810241727,-480.0,0.00013972,2]
[383018329,1756810241736,-480.0,0.00013972,2]
[383018331,1756810241746,-480.0,0.00013972,2]
[383018333,1756810241756,-480.0,0.00013972,2]
[383018335,1756810241766,-480.0,0.00013972,2]
[383018337,1756810241775,-1165.55,0.00013972,2]
[383018339,1756810241785,-480.0,0.00013972,2]
[383018341,1756810241795,-480.0,0.00013972,2]
[383018343,1756810241804,-480.0,0.00013972,2]
[383018345,1756810241813,-480.0,0.00013972,2]
[383018347,1756810241823,-480.0,0.00013972,2]
[383018349,1756810241832,-151.0,0.00013972,2]
[383018351,1756810241842,-480.0,0.00013972,2]
[383018353,1756810241852,-480.0,0.00013972,2]
[383018355,1756810241862,-480.0,0.00013972,2]
[383018357,1756810241871,-480.0,0.00013972,2]
[383018359,1756810241881,-265.5352574,0.00013972,2]
[383018361,1756810241890,-480.0,0.00013972,2]
[383018363,1756810241900,-480.0,0.00013972,2]
[383018364,1756810241909,-480.0,0.00013972,2]
[383018365,1756810241919,-480.0,0.00013972,2]
[383018366,1756810241928,-166.60363904,0.00013972,2]
[383018367,1756810241938,-186.530103,0.00013972,2]
[383018368,1756810241947,-485.65967373,0.00013972,2]
[383018369,1756810241956,-480.0,0.00013972,2]
[383018370,1756810241965,-480.0,0.00013972,2]
[383018371,1756810241975,-878.43,0.00013972,2]
[383018372,1756810241984,-480.0,0.00013972,2]
[383018373,1756810241993,-480.0,0.00013972,2]
[383018374,1756810242003,-480.0,0.00013972,2]
[383018375,1756810242012,-480.0,0.00013972,2]
[383018376,1756810242022,-665.99,0.00013972,2]
[383018377,1756810242031,-480.0,0.00013972,2]
[383018378,1756810242040,-872.85,0.00013972,2]
[383018379,1756810242050,-480.0,0.00013972,2]
[383018380,1756810242059,-480.0,0.00013972,2]
[383018381,1756810242068,-480.0,0.00013972,2]
[383018382,1756810242077,-775.01,0.00013972,2]
[383018383,1756810242088,-480.0,0.00013972,2]
[383018384,1756810242097,-480.0,0.00013972,2]
[383018385,1756810242107,-480.0,0.00013972,2]
[383018386,1756810242117,-480.0,0.00013972,2]
[383018387,1756810242126,-480.0,0.00013972,2]
[383018388,1756810242135,-480.0,0.00013972,2]
[383018389,1756810242144,-480.0,0.00013972,2]
[383018390,1756810242154,-480.0,0.00013972,2]
[383018391,1756810242163,-480.0,0.00013972,2]
[383018392,1756810242172,-483.73,0.00013972,2]
[383018393,1756810242182,-480.0,0.00013972,2]
[383018394,1756810242191,-480.0,0.00013972,2]
[383018395,1756810242200,-1605.01,0.00013972,2]
[383018396,1756810242210,-458.75,0.00013972,2]
[383018397,1756810242219,-480.0,0.00013972,2]
[383018398,1756810242257,-480.0,0.00013972,2]
[383018399,1756810242266,-377.52338666,0.00013972,2]
[383018400,1756810242275,-480.0,0.00013972,2]
[383018401,1756810242285,-480.0,0.00013972,2]
[383018402,1756810242294,-480.0,0.00013972,2]
[383018403,1756810242303,-480.0,0.00013972,2]
[383018405,1756810242312,-480.0,0.00013972,2]
[383018407,1756810242322,-480.0,0.00013972,2]
[383018409,1756810242331,-480.0,0.00013972,2]
[383018411,1756810242340,-480.0,0.00013972,2]
[383018413,1756810242349,-480.0,0.00013972,2]
[383018415,1756810242358,-480.0,0.00013972,2]
[383018417,1756810242367,-480.0,0.00013972,2]
[383018419,1756810242376,-302.00000001,0.00014005,2]
[383018421,1756810242385,-2799.95695693,0.00014009,2]
[383018423,1756810242394,-160.0,0.00014138,2]
[383018425,1756810242404,-160.0,0.00014138,2]
[383018427,1756810242418,-160.0,0.00014138,2]
[383018429,1756810242427,-5177.98662611,0.00014138,2]
[383018512,1756810243219,-3356.55289026,0.00013972,2]
[383018514,1756810243230,-434.92,0.00013972,2]
[383018520,1756810243268,-2722.40192163,0.00013972,2]
[383018523,1756810243279,-671.34,0.00013972,2]
[383018758,1756810246359,-644.08,0.00013698,2]
[383018759,1756810246369,-480.0,0.00013698,2]
[383018760,1756810246379,-480.0,0.00013698,2]
[383018761,1756810246388,-154.52960224,0.00013972,2]
[383018773,1756810313981,159.322344,0.00025,30]
[383018774,1756810320597,666.0,0.00013099,2]
[383018776,1756810383914,6274.59636863,0.00013597,2]
[383018777,1756810487839,1058.94980854,0.00013597,2]
[383018778,1756810502352,300.0,0.00013596,2]
[383018779,1756810502639,300.0,0.00013596,2]
[383018780,1756810502674,300.0,0.00013596,2]
[383018781,1756810502860,300.0,0.00013596,2]
[383018782,1756810505355,1200.0,0.00013596,2]
[383018783,1756810622568,155.65542487,0.00013558,2]
[383018784,1756810630499,1200.0,0.00013596,2]
[383018787,1756810814341,151.0,0.0001359,2]
[383018788,1756810815426,151.0,0.0001359,2]
[383018789,1756810816632,151.0,0.0001359,2]
[383018790,1756810817692,431.74453768,0.0001359,2]
[383018791,1756810817960,151.0,0.0001359,2]
[383018792,1756810818488,287.02588908,0.0001359,2]
[383018793,1756810831312,201.93286099,0.0001359,2]
[383018795,1756810912199,159.322344,0.00025,30]
[383018796,1756811113603,216.8758927,0.0001359,2]
[383018797,1756811238142,-507.31971817,0.00013597,2]
[383018798,1756811238165,-500.0,0.00013597,2]
[383018799,1756811238189,-163.7523618,0.00013597,2]
[383018801,1756811321116,151.0,0.000132,2]
[383018802,1756811321542,151.0,0.000127,2]
[383018803,1756811321996,151.0,0.000121,2]
[383018804,1756811322349,151.0,0.000116,2]
[383018843,1756811432438,-336.2476382,0.00013597,2]
[383018845,1756811432447,-257.59862583,0.00013597,2]
[383018847,1756811432458,-500.0,0.00013597,2]
[383018849,1756811432467,-705.96653902,0.00013598,2]
[383018850,1756811432477,-3199.68059995,0.00013598,2]
[383018853,1756811432542,-208630.8024021,0.00013598,2]
[383018856,1756811438205,-1552.15,0.00013598,2]
[383018857,1756811438276,-1476.28478081,0.00013598,2]
[383018867,1756811446427,-807.57110261,0.00013598,2]
[383018868,1756811446585,-846.44960905,0.00013598,2]
[383018869,1756811493318,1009.0,0.00013491,2]
[383018870,1756811807613,119287.90614068,0.00013498,2]
[383018871,1756812007282,527.66987477,0.00013534,2]
[383018874,1756812138702,168.0,0.00013572,2]
[383018875,1756812144058,168.0,0.00013476,2]
[383018876,1756812148634,168.0,0.00013361,2]
[383018885,1756812427119,-151.0,0.00013598,2]
[383018886,1756812427140,-296.38767841,0.00013598,2]
[383018887,1756812427162,-8504.7395971,0.00013645,2]
[383018888,1756812427181,-480.0,0.00013698,2]
[383018889,1756812427203,-480.0,0.00013698,2]
[383018890,1756812427225,-480.0,0.00013698,2]
[383018891,1756812427245,-480.0,0.00013698,2]
[383018892,1756812427266,-480.0,0.00013698,2]
[383018893,1756812427286,-478.23809356,0.00013698,2]
[383018894,1756812427309,-480.0,0.00013698,2]
[383018895,1756812427329,-480.0,0.00013698,2]
[383018896,1756812427348,-480.0,0.00013698,2]
[383018897,1756812427369,-574.2,0.00013698,2]
[383018898,1756812427390,-483.12789851,0.00013698,2]
[383018899,1756812427410,-480.0,0.00013698,2]
[383018900,1756812427430,-480.0,0.00013698,2]
[383018901,1756812427449,-480.0,0.00013698,2]
[383018902,1756812427472,-480.0,0.00013698,2]
[383018903,1756812427493,-1417.46,0.00013698,2]
[383018904,1756812427513,-575.56,0.00013698,2]
[383018905,1756812427535,-480.0,0.00013698,2]
[383018906,1756812427554,-480.0,0.00013698,2]
[383018907,1756812427574,-480.0,0.00013698,2]
[383018908,1756812427595,-527.45,0.00013698,2]
[383018909,1756812427615,-480.0,0.00013698,2]
[383018910,1756812427636,-480.0,0.00013698,2]
[383018911,1756812427662,-629.64978601,0.00013698,2]
[383018912,1756812427707,-251.48425016,0.00013698,2]
[383018913,1756812427734,-480.0,0.00013698,2]
[383018914,1756812427756,-480.0,0.00013698,2]
[383018915,1756812427777,-480.0,0.00013698,2]
[383018916,1756812427797,-364.59,0.00013698,2]
[383018917,1756812427817,-480.0,0.00013698,2]
[383018918,1756812427837,-379.90111321,0.00013698,2]
[383018919,1756812427859,-480.0,0.00013698,2]
[383018920,1756812427880,-480.0,0.00013698,2]
[383018921,1756812427900,-480.0,0.00013698,2]
[383018922,1756812427920,-480.0,0.00013698,2]
[383018923,1756812427940,-194.87,0.00013698,2]
[383018924,1756812427959,-480.0,0.00013698,2]
[383018925,1756812427978,-480.0,0.00013698,2]
[383018926,1756812428000,-480.0,0.00013698,2]
[383018927,1756812428021,-480.0,0.00013698,2]
[383018928,1756812428042,-482.53646566,0.00013698,2]
[383018929,1756812428062,-480.0,0.00013698,2]
[383018930,1756812428085,-443.72,0.00013698,2]
[383018931,1756812428105,-480.0,0.00013698,2]
[383018932,1756812428125,-480.0,0.00013698,2]
[383018933,1756812428146,-480.0,0.00013698,2]
[383018934,1756812428167,-480.0,0.00013698,2]
[383018935,1756812428188,-480.0,0.00013698,2]
[383018936,1756812428208,-482.32,0.00013698,2]
[383018937,1756812428228,-480.0,0.00013698,2]
[383018938,1756812428250,-480.0,0.00013698,2]
[383018939,1756812428286,-480.0,0.00013698,2]
[383018940,1756812428307,-480.0,0.00013698,2]
[383018941,1756812428329,-548.83,0.00013698,2]
[383018942,1756812428349,-480.0,0.00013698,2]
[383018943,1756812428369,-451.97,0.00013698,2]
[383018944,1756812428390,-480.0,0.00013698,2]
[383018945,1756812428410,-610.7,0.00013698,2]
[383018946,1756812428432,-445.79825713,0.00013698,2]
[383018947,1756812448135,-34.20174287,0.00013698,2]
[383018948,1756812448156,-480.0,0.00013698,2]
[383018949,1756812448176,-480.0,0.00013698,2]
[383018950,1756812448359,-480.0,0.00013698,2]
[383018951,1756812448381,-272.73779998,0.00013698,2]
[383018954,1756812549172,168.0,0.00013312,2]
[383018955,1756812553830,168.0,0.00013332,2]
[383018956,1756812559498,168.0,0.00013458,2]
[383018957,1756812570117,168.0,0.00013303,2]
[383018978,1756812638421,-168.0,0.00013622,2]
[383018979,1756812638431,-141.56067841,0.00013641,2]
[383018980,1756812638443,-26.43932159,0.00013641,2]
[383018981,1756812638454,-267.64009041,0.00013698,2]
[383018982,1756812638467,-212.35990959,0.00013698,2]
[383018983,1756812638477,-281.17857586,0.00013698,2]
[383018984,1756812638487,-253.07209994,0.00013698,2]
[383018996,1756812639052,-226.92790006,0.00013698,2]
[383018998,1756812639062,-455.76588376,0.00013698,2]
[383019000,1756812639073,-480.0,0.00013698,2]
[383019002,1756812639082,-236.93270534,0.00013698,2]
[383019004,1756812639092,-480.0,0.00013698,2]
[383019006,1756812639101,-480.0,0.00013698,2]
[383019008,1756812639115,-480.0,0.00013698,2]
[383019010,1756812639124,-545.24,0.00013698,2]
[383019012,1756812639134,-482.71345057,0.00013698,2]
[383019034,1756812639356,-351.81263135,0.00013698,2]
[383019121,1756812640590,-128.18736865,0.00013698,2]
[383019123,1756812640600,-480.0,0.00013698,2]
[383019125,1756812640610,-156.16563522,0.00013698,2]
[383019127,1756812640619,-172.77634963,0.00013698,2]
[383024057,1756812700722,178.36,0.00012329,2]
[383024058,1756812711158,891.84,0.00012329,2]
[383024059,1756812719632,1000.0,0.00025,30]
[383024060,1756812772100,300.0,0.00013597,2]
[383024061,1756812783600,168.0,0.00013571,2]
[383024062,1756812808351,327.48770406,0.00013534,2]
[383024063,1756812810360,1309.95081624,0.00013534,2]
[383024064,1756812812494,2947.38933654,0.00013534,2]
[383024065,1756812814387,5239.80326496,0.00013534,2]
[383024066,1756812816078,8179.0054089,0.00013534,2]
[383024067,1756812988430,5023.43061803,0.0002739,120]
[383024075,1756813652117,-300.0,0.00013689,2]
[383024076,1756813652136,-300.0,0.00013689,2]
[383024077,1756813652155,-192.0,0.00013689,2]
[383024078,1756813652175,-1200.0,0.00013689,2]
[383024079,1756813652195,-211.23419577,0.00013689,2]
[383024088,1756813831789,-990.09667029,0.00013598,2]
[383024089,1756813831798,-300.0,0.00013689,2]
[383024090,1756813831808,-1200.0,0.00013689,2]
[383024091,1756813831817,-209.40437684,0.0001369,2]
[383024092,1756813831826,-250.0,0.0001369,2]
[383024093,1756813831835,-250.0,0.0001369,2]
[383024094,1756813831845,-2618.2481025,0.0001369,2]
[383024095,1756813831854,-500.0,0.0001369,2]
[383024096,1756813831864,-500.0,0.0001369,2]
[383024097,1756813831874,-500.0,0.0001369,2]
[383024098,1756813831884,-500.0,0.0001369,2]
[383024100,1756813831894,-500.0,0.0001369,2]
[383024102,1756813831903,-1918.17922375,0.00013696,2]
[383024104,1756813831912,-22485.142164,0.00013697,2]
[383024106,1756813831922,-500.0,0.00013697,2]
[383024108,1756813831931,-598.0,0.00013697,2]
[383024110,1756813831941,-480.0,0.00013698,2]
[383024112,1756813831950,-480.0,0.00013698,2]
[383024113,1756813831961,-480.0,0.00013698,2]
[383024114,1756813831971,-480.0,0.00013698,2]
[383024115,1756813831981,-483.91690469,0.00013698,2]
[383024116,1756813831990,-480.0,0.00013698,2]
[383024117,1756813831999,-480.0,0.00013698,2]
[383024118,1756813832009,-480.0,0.00013698,2]
[383024119,1756813832018,-480.0,0.00013698,2]
[383024120,1756813832027,-480.0,0.00013698,2]
[383024121,1756813832036,-346.11011801,0.00013698,2]
[383024209,1756813843220,-500.0,0.0001369,2]
[383024211,1756813843232,-500.0,0.0001369,2]
[383024213,1756813843244,-500.0,0.0001369,2]
[383024215,1756813843257,-500.0,0.0001369,2]
[383024216,1756813843268,-500.0,0.0001369,2]
[383024219,1756813843280,-519.72023464,0.0001369,2]
[383024221,1756813843291,-241.82111487,0.00013698,2]
[383024224,1756813843302,-169.55905486,0.00013698,2]
[383024226,1756813843315,-480.0,0.00013698,2]
[383024228,1756813843328,-480.0,0.00013698,2]
[383024230,1756813843339,-480.0,0.00013698,2]
[383024232,1756813843351,-480.0,0.00013698,2]
[383024234,1756813843361,-480.0,0.00013698,2]
[383024236,1756813843371,-480.0,0.00013698,2]
[383024238,1756813843382,-480.0,0.00013698,2]
[383024240,1756813843393,-480.0,0.00013698,2]
[383024242,1756813843404,-480.0,0.00013698,2]
[383024244,1756813843415,-480.0,0.00013698,2]
[383024246,1756813843426,-480.0,0.00013698,2]
[383024248,1756813843438,-480.0,0.00013698,2]
[383024250,1756813843451,-230.29975257,0.00013698,2]
[383024252,1756813843466,-480.0,0.00013698,2]
[383024254,1756813843478,-480.0,0.00013698,2]
[383024257,1756813843490,-547.0,0.00013698,2]
[383024259,1756813843501,-434.93,0.00013698,2]
[383024261,1756813843514,-480.0,0.00013698,2]
[383024263,1756813843525,-480.0,0.00013698,2]
[383024265,1756813843535,-480.0,0.00013698,2]
[383024267,1756813843547,-480.0,0.00013698,2]
[383024269,1756813843558,-480.0,0.00013698,2]
[383024271,1756813843571,-480.0,0.00013698,2]
[383024272,1756813843582,-480.0,0.00013698,2]
[383024273,1756813843594,-151.0,0.00013698,2]
[383024274,1756813843606,-151.0,0.00013698,2]
[383024275,1756813843617,-167.09735349,0.00013698,2]
[383024276,1756813843630,-151.0,0.00013698,2]
[383024277,1756813843641,-480.0,0.00013698,2]
[383024278,1756813843652,-252.15,0.00013698,2]
[383024279,1756813843663,-480.0,0.00013698,2]
[383024280,1756813843674,-480.0,0.00013698,2]
[383024281,1756813843686,-1358.4,0.00013698,2]
[383024282,1756813843696,-480.0,0.00013698,2]
[383024283,1756813843708,-480.0,0.00013698,2]
[383024284,1756813843718,-261.25598364,0.00013698,2]
[383024285,1756813843729,-480.0,0.00013698,2]
[383024286,1756813843740,-480.0,0.00013698,2]
[383024287,1756813843751,-1471.26,0.00013698,2]
[383024288,1756813843761,-480.0,0.00013698,2]
[383024289,1756813843772,-246.56,0.00013698,2]
[383024290,1756813843783,-591.63462632,0.00013698,2]
[383024292,1756813843794,-480.0,0.00013698,2]
[383024293,1756813843805,-284.27,0.00013698,2]
[383024296,1756813843816,-215.27,0.00013698,2]
[383024297,1756813843827,-480.0,0.00013698,2]
[383024298,1756813843839,-480.0,0.00013698,2]
[383024299,1756813843850,-480.0,0.00013698,2]
[383024300,1756813843861,-349.19,0.00013698,2]
[383024301,1756813843872,-480.0,0.00013698,2]
[383024302,1756813843883,-480.0,0.00013698,2]
[383024303,1756813843896,-480.0,0.00013698,2]
[383024304,1756813843907,-480.0,0.00013698,2]
[383024305,1756813843919,-480.0,0.00013698,2]
[383024306,1756813843930,-480.0,0.00013698,2]
[383024307,1756813843943,-500.0,0.00013698,2]
[383024308,1756813843955,-480.0,0.00013698,2]
[383024309,1756813843970,-480.0,0.00013698,2]
[383024310,1756813843983,-391.44,0.00013698,2]
[383024311,1756813844185,-480.0,0.00013698,2]
[383024312,1756813844203,-480.0,0.00013698,2]
[383024313,1756813844217,-480.0,0.00013698,2]
[383024314,1756813844226,-480.0,0.00013698,2]
[383024315,1756813844235,-482.21,0.00013698,2]
[383024316,1756813844244,-480.0,0.00013698,2]
[383024317,1756813844254,-475.52,0.00013698,2]
[383024318,1756813844263,-480.0,0.00013698,2]
[383024319,1756813844273,-480.0,0.00013698,2]
[383024320,1756813844283,-480.0,0.00013698,2]
[383024321,1756813844294,-1068.42,0.00013698,2]
[383024322,1756813844303,-480.0,0.00013698,2]
[383024323,1756813844312,-552.08,0.00013698,2]
[383024324,1756813844322,-455.01,0.00013698,2]
[383024325,1756813844332,-480.0,0.00013698,2]
[383024326,1756813844341,-800.11,0.00013698,2]
[383024327,1756813844351,-480.0,0.00013698,2]
[383024328,1756813844361,-311.91,0.00013698,2]
[383024329,1756813844371,-480.0,0.00013698,2]
[383024330,1756813844381,-262.33,0.00013698,2]
[383024331,1756813844391,-480.0,0.00013698,2]
[383024332,1756813844402,-508.6,0.00013698,2]
[383024333,1756813844412,-151.0,0.00013698,2]
[383024334,1756813844422,-480.0,0.00013698,2]
[383024335,1756813844432,-252.84445179,0.00013698,2]
[383024336,1756813844442,-480.0,0.00013698,2]
[383024337,1756813844453,-805.23,0.00013698,2]
[383024338,1756813844467,-480.0,0.00013698,2]
[383024339,1756813844478,-578.53,0.00013698,2]